bitfinex-derivatives/quotes_SOLF0:USTF0_20250215
["timestamp","ask_amount","ask_price","bid_price","bid_amount"]
[1739613933032,140.12749939,194.95,194.79,22.77474082]
[1739613933633,22.77474082,194.93,194.84,5.1314]
[1739613933936,0.03270064,194.89,194.85,0.03764573]
[1739613934430,5.16300064,194.89,194.85,0.03764573]
[1739613934633,0.03270064,194.89,194.85,0.03764573]
[1739613935734,5.1311,194.87,194.85,0.03764573]
[1739613935935,0.03270064,194.89,194.85,0.03764573]
[1739613936236,5.1311,194.86,194.85,0.03764573]
[1739613941042,18.94205114,194.87,194.85,0.03764573]
[1739613941743,5.1308,194.87,194.85,0.03764573]
[1739613942733,5.16320064,194.89,194.85,0.03764573]
[1739613943042,0.03270064,194.89,194.85,0.03764573]
[1739613943244,5.131,194.87,194.85,0.03764573]
[1739613945143,0.03270064,194.89,194.85,0.03764573]
[1739613945741,5.1307,194.88,194.85,0.03764573]
[1739613945935,0.03270064,194.89,194.85,0.03764573]
[1739613946744,0.03270064,194.89,194.86,5.131]
[1739613947144,0.03270064,194.89,194.85,0.03764573]
[1739613947340,0.03270064,194.89,194.85,5.16894573]
[1739613948243,0.03270064,194.89,194.86,5.1311]
[1739613950242,0.03270064,194.89,194.85,0.03764573]
[1739613950444,0.03270064,194.89,194.87,5.1308]
[1739613951949,0.03270064,194.89,194.88,5.1306]
[1739613952852,5.1294,194.93,194.89,5.1302]
[1739613953153,13.81125114,194.96,194.86,3.0256]
[1739613953352,5.1287,194.95,194.86,3.0256]
[1739613953852,5.1287,194.95,194.91,5.1297]
[1739613954047,0.03795709,194.92,194.91,5.1297]
[1739613957654,13.81125114,194.99,194.89,0.03701807]
[1739613957958,5.1285,194.96,194.89,0.03701807]
[1739613958858,0.03332247,194.94,194.89,0.03701807]
[1739613959055,0.03332247,194.94,194.93,5.1292]
[1739613959959,5.13,194.9,194.89,0.03701807]
[1739613960151,13.81125114,194.9,194.82,1.5632]
[1739613961157,5.1309,194.87,194.82,1.5632]
[1739613961457,5.1309,194.87,194.84,0.03359642]
[1739613962261,5.16588549,194.88,194.84,0.03359642]
[1739613962858,0.03528549,194.88,194.84,0.03359642]
[1739613965059,0.03528549,194.88,194.79,4.0674]
[1739613965060,13.81125114,194.85,194.73,13.81125114]
[1739613965264,13.81125114,194.82,194.71,6.033]
[1739613965563,13.81125114,194.85,194.73,13.81125114]
[1739613965767,5.1327,194.8,194.74,5.1342]
[1739613966062,5.1327,194.8,194.73,13.81125114]
[1739613966264,0.03263453,194.79,194.75,0.03320245]
[1739613966766,0.03263453,194.79,194.75,5.16720245]
[1739613969067,0.03263453,194.79,194.75,0.03320245]
[1739613969267,0.03263453,194.79,194.76,5.1336]
[1739613970364,0.03263453,194.79,194.77,5.1334]
[1739613970561,0.03263453,194.79,194.75,0.03320245]
[1739613970870,13.81125114,194.76,194.75,0.03320245]
[1739613971063,13.81125114,194.76,194.56,13.81125114]
[1739613971263,13.81125114,194.71,194.57,5.8864]
[1739613971663,5.1357,194.69,194.61,5.1375]
[1739613972173,5.1357,194.69,194.57,5.8864]
[1739613972174,0.03683821,194.67,194.63,0.03606392]
[1739613972669,5.1366,194.65,194.63,0.03606392]
[1739613973066,0.03683821,194.67,194.63,0.03606392]
[1739613973469,5.1369,194.64,194.63,0.03606392]
[1739613973668,5.1369,194.64,194.63,6.392e-05]
[1739613973870,0.03683821,194.67,194.63,6.392e-05]
[1739613977082,0.03683821,194.67,194.63,5.13716392]
[1739613977284,0.03683821,194.67,194.63,6.392e-05]
[1739613977880,0.03683821,194.67,194.66,5.1364]
[1739613978081,18.94545114,194.74,194.66,5.1364]
[1739613978082,13.81125114,194.74,194.66,5.1364]
[1739613978679,13.81125114,194.74,194.67,5.1361]
[1739613978880,13.81125114,194.77,194.65,13.81125114]
[1739613979080,18.94495114,194.77,194.66,3.7867]
[1739613979282,0.03573922,194.73,194.69,0.0327643]
[1739613980383,0.03573922,194.73,194.71,5.1348]
[1739613980780,0.03573922,194.73,194.69,0.0327643]
[1739613981479,13.81125114,194.83,194.71,13.81125114]
[1739613981679,13.81125114,194.86,194.74,13.81125114]
[1739613982080,5.1316,194.85,194.79,5.1329]
[1739613982484,13.81125114,194.86,194.79,5.1329]
[1739613982778,0.03563866,194.84,194.8,0.03647065]
[1739613983683,0.03563866,194.84,194.8,13.84077891]
[1739613983982,0.03563866,194.84,194.8,0.03647065]
[1739613984684,0.03563866,194.84,194.81,5.1324]
[1739613985179,0.03563866,194.84,194.8,0.03647065]
[1739613988387,0.03563866,194.84,194.81,5.1323]
[1739613988587,0.03563866,194.84,194.8,0.03647065]
[1739613988895,5.16753866,194.84,194.8,0.03647065]
[1739613989383,5.1319,194.83,194.8,0.03647065]
[1739613990086,5.16723866,194.84,194.8,0.03647065]
[1739613991094,0.03563866,194.84,194.8,5.16907065]
[1739613992191,0.03563866,194.84,194.81,5.1323]
[1739613992388,0.03563866,194.84,194.8,0.03647065]
[1739613993093,0.03563866,194.84,194.82,5.1319]
[1739613993786,0.03563866,194.84,194.83,5.1319]
[1739613997497,5.1306,194.88,194.83,5.1317]
[1739613997798,5.1309,194.87,194.83,5.1317]
[1739613998294,24.84152955,194.95,194.85,5.1312]
[1739613998496,0.03632533,194.87,194.85,5.1312]
[1739613998696,24.84152955,194.95,194.85,5.1312]
[1739613998899,0.03575387,194.88,194.85,5.1312]
[1739613999088,5.1301,194.9,194.85,5.1312]
[1739613999293,0.03274187,194.88,194.85,5.16685282]
[1739613999594,0.03274187,194.88,194.85,0.03565282]
[1739614002696,5.1308,194.87,194.85,0.03565282]
[1739614002897,0.03274187,194.88,194.85,0.03565282]
[1739614003399,0.03274187,194.88,194.85,5.16685282]
[1739614004396,5.16334187,194.88,194.85,5.16685282]
[1739614004697,5.16334187,194.88,194.85,0.03565282]
[1739614005400,0.03274187,194.88,194.85,5.16675282]
[1739614005595,0.03274187,194.88,194.85,0.03565282]
[1739614005898,0.03274187,194.88,194.85,5.16695282]
[1739614006199,5.16344187,194.88,194.85,0.03565282]
[1739614006498,0.03274187,194.88,194.85,0.03565282]
[1739614006692,0.03274187,194.88,194.85,5.16695282]
[1739614008293,0.03274187,194.88,194.86,5.131]
[1739614008589,0.03274187,194.88,194.85,0.03565282]
[1739614009292,5.1311,194.86,194.85,0.03565282]
[1739614010003,5.1308,194.87,194.85,0.03565282]
[1739614010998,0.03274187,194.88,194.85,0.03565282]
[1739614011300,5.1311,194.86,194.85,0.03565282]
[1739614018205,5.1317,194.84,194.76,13.80307574]
[1739614018506,13.80307574,194.88,194.76,13.80307574]
[1739614018701,5.1322,194.82,194.76,13.80307574]
[1739614019101,13.80307574,194.88,194.79,5.1327]
[1739614019309,0.03709815,194.81,194.79,5.1327]
[1739614019604,140.12749939,194.91,194.78,0.03752763]
[1739614019605,0.0382564,194.82,194.78,0.03752763]
[1739614019803,5.1323,194.82,194.77,5.1333]
[1739614020105,0.03333009,194.82,194.78,0.03801343]
[1739614020304,5.16553009,194.82,194.78,0.03801343]
[1739614020499,0.03333009,194.82,194.78,0.03801343]
[1739614020898,0.03333009,194.82,194.81,5.1324]
[1739614024705,155.93747513,194.94,194.79,19.99107574]
[1739614025006,155.93747513,194.94,194.82,13.80307574]
[1739614026009,0.034837,194.9,194.86,0.03340433]
[1739614027210,5.164937,194.9,194.86,0.03340433]
[1739614028011,0.034837,194.9,194.86,0.03340433]
[1739614028714,5.164937,194.9,194.86,0.03340433]
[1739614030411,5.1305,194.89,194.86,0.03340433]
[1739614030807,5.164937,194.9,194.86,0.03340433]
[1739614031810,0.034837,194.9,194.87,8.85593385]
[1739614032011,0.034837,194.9,194.89,8.85593385]
[1739614032315,0.034837,194.9,194.87,8.85593385]
[1739614032513,5.164937,194.9,194.87,8.85593385]
[1739614033216,0.034837,194.9,194.87,8.85593385]
[1739614034212,5.164937,194.9,194.87,8.85593385]
[1739614036315,0.034837,194.9,194.87,8.85593385]
[1739614037117,5.164837,194.9,194.87,8.85593385]
[1739614038615,0.034837,194.9,194.89,8.85593385]
[1739614038818,140.12749939,194.96,194.89,8.85593385]
[1739614039019,140.12749939,194.96,194.94,8.85593385]
[1739614039919,0.03424437,194.97,194.94,8.85593385]
[1739614040113,0.03424437,194.97,194.93,0.03516084]
[1739614041221,0.03424437,194.97,194.93,5.16436084]
[1739614041820,0.03424437,194.97,194.94,13.98473385]
[1739614042416,0.03424437,194.97,194.95,5.1287]
[1739614042615,0.03424437,194.97,194.94,8.85593385]
[1739614043620,0.03424437,194.97,194.96,8.85593385]
[1739614048817,0.03424437,194.97,194.96,13.98433385]
[1739614052017,8.85593385,195.06,194.98,5.1277]
[1739614052214,8.85593385,195.06,195.01,8.85593385]
[1739614052723,5.1268,195.03,195.01,8.85593385]
[1739614054527,5.16408445,195.04,195.01,8.85593385]
[1739614055831,5.16408445,195.04,195.03,8.85593385]
[1739614056621,5.1269,195.02,195.01,8.85593385]
[1739614057024,0.03768445,195.04,195.01,8.85593385]
[1739614057324,0.03768445,195.04,195.03,8.85593385]
[1739614058125,5.16408445,195.04,195.03,8.85593385]
[1739614059027,0.03768445,195.04,195.03,8.85593385]
[1739614059827,0.03768445,195.04,195.01,8.85593385]
[1739614060330,5.1268,195.03,195.01,8.85593385]
[1739614060526,0.03768445,195.04,195.01,8.85593385]
[1739614060830,5.1269,195.02,195.01,8.85593385]
[1739614061526,0.03768445,195.04,195.0,0.03568144]
[1739614061726,5.1271,195.01,195.0,0.03568144]
[1739614063132,5.1269,195.02,195.0,0.03568144]
[1739614065722,5.1271,195.01,195.0,0.03568144]
[1739614068733,5.128,194.98,194.95,8.85593385]
[1739614069622,8.85593385,195.02,194.95,8.85593385]
[1739614069825,5.1274,195.0,194.95,8.85593385]
[1739614070030,5.1646463,195.0,194.97,0.03944758]
[1739614070325,0.0372463,195.0,194.97,8.89538143]
[1739614074035,0.0372463,195.0,194.97,14.02348143]
[1739614074831,0.0372463,195.0,194.97,8.89538143]
[1739614077942,0.0372463,195.0,194.97,14.02348143]
[1739614078347,0.0372463,195.0,194.99,8.85593385]
[1739614079642,0.0372463,195.0,194.99,13.98363385]
[1739614081648,5.1258,195.06,195.01,5.127]
[1739614081849,5.1258,195.06,195.03,8.85593385]
[1739614082845,5.16034224,195.06,195.03,8.89001971]
[1739614083550,5.1263,195.04,195.03,0.03408586]
[1739614084251,13.98223385,195.04,195.03,0.03408586]
[1739614084547,8.85593385,195.04,194.97,8.85593385]
[1739614084849,5.1277,194.99,194.95,8.85593385]
[1739614085049,142.33569939,195.09,194.95,8.85593385]
[1739614085050,8.85593385,195.0,194.95,8.85593385]
[1739614085251,8.85593385,195.0,194.93,8.85593385]
[1739614085847,0.0385532,194.98,194.95,0.0345601]
[1739614086046,0.0385532,194.98,194.95,8.89049395]
[1739614087146,0.0385532,194.98,194.97,8.85593385]
[1739614089042,0.0385532,194.98,194.97,13.98413385]
[1739614094151,0.0385532,194.98,194.97,8.85593385]
[1739614097051,0.0385532,194.98,194.95,8.89049395]
[1739614097855,8.89448705,194.98,194.95,0.0345601]
[1739614098052,5.1284,194.96,194.95,0.0345601]
[1739614098747,8.89448705,194.98,194.91,8.85593385]
[1739614099057,5.129,194.94,194.91,8.85593385]
[1739614099852,5.129,194.94,194.91,8.88837309]
[1739614100860,0.0385532,194.98,194.93,8.85593385]
[1739614101061,0.0385532,194.98,194.97,8.85593385]
[1739614105261,5.1664532,194.98,194.96,0.03449679]
[1739614106660,5.1282,194.97,194.96,0.03449679]
[1739614107062,5.1282,194.97,194.96,9.679e-05]
[1739614117269,5.1665532,194.98,194.96,9.679e-05]
[1739614118069,0.0385532,194.98,194.96,9.679e-05]
[1739614118471,0.0385532,194.98,194.97,8.85593385]
[1739614120371,0.0385532,194.98,194.96,9.679e-05]
[1739614120972,5.1282,194.97,194.96,9.679e-05]
[1739614145491,146.23310526,194.97,194.96,9.679e-05]
[1739614147085,5.1282,194.97,194.96,9.679e-05]
[1739614147685,0.0385532,194.98,194.96,9.679e-05]
[1739614148291,5.1666532,194.98,194.96,9.679e-05]
[1739614149594,5.1282,194.97,194.96,9.679e-05]
[1739614152395,0.0385532,194.98,194.96,9.679e-05]
[1739614154599,0.0385532,194.98,194.96,5.12849679]
[1739614155499,0.0385532,194.98,194.97,8.85593385]
[1739614160906,56.06253967,195.02,194.97,13.98413385]
[1739614161206,50.93563967,195.02,194.97,8.85593385]
[1739614162010,0.03270431,195.01,194.97,8.85593385]
[1739614162198,0.03270431,195.01,194.96,9.679e-05]
[1739614162606,8.85593385,194.98,194.96,9.679e-05]
[1739614163707,5.1282,194.97,194.96,9.679e-05]
[1739614166906,8.85593385,194.98,194.85,8.85593385]
[1739614167109,13.98573385,194.91,194.83,8.85593385]
[1739614167311,8.85593385,194.89,194.84,88.90476938]
[1739614167510,8.85593385,194.91,194.84,88.90476938]
[1739614167815,8.85593385,194.93,194.87,8.85593385]
[1739614168112,0.03592287,194.92,194.88,0.03922496]
[1739614172519,0.03592287,194.92,194.89,8.85593385]
[1739614172813,0.03592287,194.92,194.91,8.85593385]
[1739614173020,10.33953832,194.98,194.91,8.85593385]
[1739614173214,149.96083911,194.99,194.93,13.98513385]
[1739614174121,0.03357107,194.98,194.94,0.03461981]
[1739614174419,0.03357107,194.98,194.94,5.16361981]
[1739614174810,0.03357107,194.98,194.94,0.03461981]
[1739614176320,8.85593385,194.97,194.94,0.03461981]
[1739614176713,8.85593385,194.95,194.94,0.03461981]
[1739614176910,13.98463385,194.95,194.94,0.03461981]
[1739614182722,8.85593385,194.95,194.94,0.03461981]
[1739614182928,8.85593385,194.97,194.94,0.03461981]
[1739614183330,5.1285,194.96,194.94,0.03461981]
[1739614183733,8.85593385,194.97,194.94,0.03461981]
[1739614183932,5.1287,194.95,194.94,0.03461981]
[1739614184131,13.98463385,194.95,194.94,0.03461981]
[1739614196338,13.98463385,194.95,194.94,1.981e-05]
[1739614198147,8.85593385,194.95,194.85,6.3112]
[1739614198345,8.85593385,194.89,194.85,6.3112]
[1739614199248,14.02233214,194.89,194.85,6.34595579]
[1739614201344,5.1309,194.87,194.85,6.34595579]
[1739614201547,5.1309,194.87,194.85,0.03475579]
[1739614202047,8.89193214,194.89,194.85,0.03475579]
[1739614202248,5.1308,194.88,194.85,0.03475579]
[1739614202751,8.89193214,194.89,194.85,0.03475579]
[1739614202952,5.1311,194.86,194.85,0.03475579]
[1739614203152,8.85593385,194.87,194.85,0.03475579]
[1739614204051,13.98673385,194.87,194.85,0.03475579]
[1739614204248,8.85593385,194.87,194.85,0.03475579]
[1739614206250,13.98683385,194.87,194.85,0.03475579]
[1739614206647,8.85593385,194.87,194.85,0.03475579]
[1739614206849,5.1311,194.86,194.85,0.03475579]
[1739614209250,13.98723385,194.85,194.84,0.01885579]
[1739614210546,5.1316,194.84,194.83,5.76e-05]
[1739614212551,8.85593385,194.85,194.71,13.99083385]
[1739614212751,8.85593385,194.77,194.71,15.99083385]
[1739614213452,8.85593385,194.77,194.71,10.85593385]
[1739614213656,0.03819895,194.76,194.72,0.03375869]
[1739614214856,0.03819895,194.76,194.73,5.1345]
[1739614215056,0.03819895,194.76,194.72,0.03375869]
[1739614216255,0.03819895,194.76,194.72,2.03375869]
[1739614217255,8.85593385,194.75,194.72,2.03375869]
[1739614218274,8.85593385,194.73,194.72,2.03375869]
[1739614218458,13.99043385,194.73,194.72,2.03375869]
[1739614221463,8.85593385,194.75,194.72,2.03375869]
[1739614221659,0.03819895,194.76,194.72,2.03375869]
[1739614222659,0.03819895,194.76,194.73,5.1345]
[1739614223361,0.03819895,194.76,194.74,5.1342]
[1739614223664,0.03819895,194.76,194.73,8.85593385]
[1739614224267,0.03819895,194.76,194.73,13.99023385]
[1739614225263,0.03819895,194.76,194.74,5.1342]
[1739614225463,0.03819895,194.76,194.72,2.03375869]
[1739614225865,0.03819895,194.76,194.72,7.16845869]
[1739614226573,8.85593385,194.75,194.72,2.03375869]
[1739614227366,5.1342,194.74,194.72,2.03375869]
[1739614227566,8.85593385,194.73,194.72,2.03375869]
[1739614227762,13.99043385,194.73,194.72,2.03375869]
[1739614227969,8.85593385,194.73,194.61,8.85593385]
[1739614228268,8.85593385,194.67,194.61,8.85593385]
[1739614229063,0.03366576,194.66,194.62,0.03746542]
[1739614229864,0.03366576,194.66,194.62,5.17476542]
[1739614230071,0.03366576,194.66,194.62,7.21316542]
[1739614230765,0.03366576,194.66,194.62,2.07586542]
[1739614230966,0.03366576,194.66,194.63,5.1371]
[1739614231163,13.83551625,194.71,194.62,2.07586542]
[1739614231367,13.83551625,194.74,194.62,15.91138167]
[1739614231661,13.83551625,194.77,194.65,13.83551625]
[1739614231862,13.83551625,194.77,194.66,4.256]
[1739614232370,0.03499428,194.73,194.7,0.03485403]
[1739614236371,5.135,194.71,194.7,0.03485403]
[1739614237168,5.1348,194.72,194.7,0.03485403]
[1739614237364,0.03499428,194.73,194.7,0.03485403]
[1739614237779,5.135,194.71,194.7,0.03485403]
[1739614243176,18.97051625,194.71,194.7,0.03485403]
[1739614244776,5.1348,194.72,194.7,0.03485403]
[1739614245079,0.03499428,194.73,194.7,0.03485403]
[1739614245273,5.1348,194.72,194.7,0.03485403]
[1739614245474,0.03499428,194.73,194.7,0.03485403]
[1739614245871,13.83551625,194.71,194.7,0.03485403]
[1739614246277,18.97051625,194.71,194.7,0.03485403]
[1739614248782,5.135,194.71,194.7,0.03485403]
[1739614249879,0.03499428,194.73,194.7,0.03485403]
[1739614251681,141.10490526,194.75,194.7,0.03485403]
[1739614251886,141.10490526,194.75,194.7,13.85915445]
[1739614252186,141.10490526,194.75,194.73,8.86663369]
[1739614252581,146.23810526,194.78,194.73,8.86663369]
[1739614252988,0.0379417,194.77,194.73,8.86663369]
[1739614253288,5.1714417,194.77,194.73,8.86663369]
[1739614253483,8.90457539,194.77,194.71,13.23453369]
[1739614253679,8.86663369,194.75,194.71,4.3679]
[1739614253987,5.1345,194.74,194.71,4.3679]
[1739614256180,5.1346,194.73,194.71,4.3679]
[1739614256381,0.0379417,194.77,194.7,0.03485403]
[1739614256586,13.82471611,194.75,194.7,0.03485403]
[1739614256988,5.135,194.71,194.7,0.03485403]
[1739614257589,5.16861911,194.72,194.7,0.03485403]
[1739614257894,0.03381911,194.72,194.7,0.03485403]
[1739614261697,5.16861911,194.72,194.7,0.03485403]
[1739614263389,5.135,194.71,194.7,0.03485403]
[1739614265494,5.135,194.71,194.7,5.403e-05]
[1739614265700,5.137,194.64,194.57,13.82471611]
[1739614265995,179.15197296,194.75,194.57,13.82471611]
[1739614265996,13.82471611,194.68,194.57,13.82471611]
[1739614266195,5.1372,194.63,194.57,13.82471611]
[1739614266400,13.82471611,194.68,194.57,13.82471611]
[1739614266794,5.1372,194.63,194.61,0.03344955]
[1739614267904,5.17514371,194.64,194.61,0.03344955]
[1739614268297,0.03824371,194.64,194.61,0.03344955]
[1739614269003,5.1372,194.63,194.61,0.03344955]
[1739614269497,5.1374,194.62,194.61,0.03344955]
[1739614270995,5.1372,194.63,194.61,0.03344955]
[1739614271301,0.03824371,194.64,194.61,0.03344955]
[1739614271500,5.17514371,194.64,194.61,0.03344955]
[1739614272601,5.1371,194.63,194.61,0.03344955]
[1739614276112,14.01892437,194.62,194.61,0.03344955]
[1739614277512,8.88152437,194.62,194.61,0.03344955]
[1739614282611,8.88152437,194.62,194.54,8.88152437]
[1739614282612,8.88152437,194.62,194.55,5.1392]
[1739614282905,8.88152437,194.59,194.55,5.1392]
[1739614283112,8.88152437,194.59,194.54,8.88152437]
[1739614283712,0.03646188,194.58,194.55,0.03769755]
[1739614284407,5.17516188,194.58,194.55,0.03769755]
[1739614284610,8.88152437,194.57,194.55,0.03769755]
[1739614286111,5.139,194.56,194.55,0.03769755]
[1739614286411,0.03646188,194.58,194.55,0.03769755]
[1739614287615,0.03646188,194.58,194.55,5.17689755]
[1739614291918,0.03646188,194.58,194.55,0.03769755]
[1739614292119,0.03646188,194.58,194.56,5.1389]
[1739614293124,0.03646188,194.58,194.55,5.17689755]
[1739614293620,0.03646188,194.58,194.55,0.03769755]
[1739614294818,5.17496188,194.58,194.55,0.03769755]
[1739614295014,0.03646188,194.58,194.55,0.03769755]
[1739614299725,0.03646188,194.58,194.55,5.17699755]
[1739614299923,0.03646188,194.58,194.55,0.03769755]
[1739614300925,0.03646188,194.58,194.56,5.1388]
[1739614309131,0.03646188,194.58,194.55,0.03769755]
[1739614309324,0.03646188,194.58,194.56,5.139]
[1739614310128,0.03646188,194.58,194.55,0.03769755]
[1739614310535,8.88152437,194.57,194.55,0.03769755]
[1739614310939,14.02022437,194.57,194.55,0.03769755]
[1739614311240,8.88152437,194.57,194.55,0.03769755]
[1739614312439,8.88152437,194.57,194.55,9.755e-05]
[1739614312635,5.139,194.56,194.55,9.755e-05]
[1739614314639,8.80926921,194.56,194.48,8.88152437]
[1739614314943,8.88152437,194.55,194.48,8.88152437]
[1739614315139,5.1396,194.54,194.48,8.88152437]
[1739614315437,8.80986921,194.54,194.48,8.88152437]
[1739614315842,8.91811807,194.53,194.49,0.03918495]
[1739614316549,3.67026921,194.52,194.49,5.17998495]
[1739614316943,3.67026921,194.51,194.49,5.17998495]
[1739614317645,3.67026921,194.5,194.49,5.17998495]
[1739614319549,3.67026921,194.5,194.49,0.03918495]
[1739614322350,8.81086921,194.5,194.49,0.03918495]
[1739614325152,3.67026921,194.5,194.49,0.03918495]
[1739614326346,3.67026921,194.5,194.49,5.17998495]
[1739614326952,3.67026921,194.5,194.49,0.03918495]
[1739614327351,12.55179358,194.5,194.4,55.81359169]
[1739614327546,12.55179358,194.5,194.43,8.88152437]
[1739614327749,3.67026921,194.49,194.45,8.88152437]
[1739614327950,3.67026921,194.49,194.46,5.1414]
[1739614328357,3.67026921,194.48,194.46,5.1414]
[1739614328557,3.67026921,194.48,194.46,5.17494105]
[1739614329359,3.67026921,194.47,194.46,0.03354105]
[1739614329557,0.33406921,194.47,194.46,0.03354105]
[1739614330057,5.47546921,194.47,194.46,0.03354105]
[1739614330861,5.1414,194.47,194.46,0.03354105]
[1739614331557,8.88152437,194.48,194.35,8.88152437]
[1739614331750,8.88152437,194.44,194.37,8.88152437]
[1739614331954,191.0,194.56,194.39,14.02472437]
[1739614331955,8.88152437,194.46,194.39,14.02472437]
[1739614332158,8.88152437,194.46,194.4,2.1757]
[1739614332358,8.88152437,194.46,194.41,8.88152437]
[1739614332555,0.03491985,194.45,194.41,8.88152437]
[1739614332858,0.03491985,194.45,194.42,0.02528086]
[1739614333751,0.03491985,194.45,194.43,5.1422]
[1739614334056,0.03491985,194.45,194.43,8.88152437]
[1739614335158,0.03491985,194.45,194.43,14.02392437]
[1739614336770,0.03491985,194.45,194.42,0.02528086]
[1739614336966,10.36076281,194.54,194.44,8.88152437]
[1739614337260,10.36076281,194.55,194.51,8.88152437]
[1739614337660,141.10490526,194.56,194.51,8.88152437]
[1739614338057,0.03774282,194.55,194.52,0.03538303]
[1739614338366,8.88152437,194.59,194.52,0.03538303]
[1739614338666,0.03688737,194.55,194.52,0.03538303]
[1739614339166,0.03688737,194.55,194.53,8.88152437]
[1739614339964,0.03688737,194.55,194.54,5.1395]
[1739614340859,8.88152437,194.63,194.53,11.10542437]
[1739614341059,8.88152437,194.63,194.57,8.88152437]
[1739614342065,0.03324038,194.62,194.58,0.03254709]
[1739614343670,5.1377,194.61,194.58,0.03254709]
[1739614345572,5.138,194.6,194.58,0.03254709]
[1739614347274,5.1382,194.59,194.58,0.03254709]
[1739614348270,5.138,194.6,194.58,0.03254709]
[1739614349272,5.1382,194.59,194.58,0.03254709]
[1739614354083,13.84340784,194.59,194.47,13.84340784]
[1739614354572,13.84340784,194.59,194.47,18.98450784]
[1739614354777,5.1398,194.53,194.47,13.84340784]
[1739614354971,13.84340784,194.59,194.47,13.84340784]
[1739614355172,0.03662121,194.55,194.48,5.141]
[1739614355375,0.03662121,194.55,194.51,0.03526768]
[1739614355675,5.1398,194.53,194.51,0.03526768]
[1739614356077,0.03662121,194.55,194.51,0.03526768]
[1739614356875,5.1401,194.52,194.51,0.03526768]
[1739614357275,0.03662121,194.55,194.51,0.03526768]
[1739614357481,5.1397,194.54,194.51,0.03526768]
[1739614357681,0.03662121,194.55,194.51,0.03526768]
[1739614358978,5.1397,194.54,194.51,0.03526768]
[1739614359381,0.03662121,194.55,194.51,0.03526768]
[1739614359583,5.1399,194.53,194.51,0.03526768]
[1739614360584,5.1401,194.52,194.51,0.03526768]
[1739614371497,8.88983774,194.53,194.45,8.88983774]
[1739614371705,8.88983774,194.48,194.43,8.88983774]
[1739614371996,8.88983774,194.48,194.43,14.03203774]
[1739614372699,0.0350982,194.47,194.44,0.02927331]
[1739614372900,8.88983774,194.46,194.44,0.02927331]
[1739614374100,5.1419,194.45,194.44,0.02927331]
[1739614374402,8.88983774,194.46,194.44,0.02927331]
[1739614374799,5.1419,194.45,194.44,0.02927331]
[1739614377300,5.1428,194.42,194.37,8.88983774]
[1739614377502,14.03263774,194.42,194.37,8.88983774]
[1739614378198,5.1424,194.43,194.37,14.03363774]
[1739614378404,0.03685163,194.41,194.37,8.88983774]
[1739614378597,8.88983774,194.44,194.37,8.88983774]
[1739614378798,0.03596698,194.41,194.37,8.88983774]
[1739614379098,0.03596698,194.41,194.38,5.1435]
[1739614380305,0.03596698,194.41,194.39,5.1434]
[1739614380506,0.03596698,194.41,194.39,8.88983774]
[1739614381199,0.03596698,194.41,194.37,8.88983774]
[1739614381598,0.03596698,194.41,194.38,5.1437]
[1739614382002,5.17906698,194.41,194.36,5.1441]
[1739614382704,5.1435,194.39,194.35,14.03433774]
[1739614382904,8.88983774,194.4,194.35,8.88983774]
[1739614383707,14.03313774,194.4,194.35,14.03433774]
[1739614383905,14.03313774,194.4,194.35,8.88983774]
[1739614384314,0.03596698,194.41,194.35,8.88983774]
[1739614384608,0.03596698,194.41,194.33,6.4449]
[1739614384609,0.03596698,194.41,194.39,8.88983774]
[1739614385009,0.03596698,194.41,194.39,14.03303774]
[1739614385209,0.03596698,194.41,194.39,8.88983774]
[1739614386011,0.03596698,194.41,194.37,8.88983774]
[1739614386218,8.88983774,194.4,194.33,15.33473774]
[1739614386810,14.03303774,194.4,194.35,5.1444]
[1739614387308,0.03596698,194.41,194.32,25.20679385]
[1739614387309,8.88983774,194.38,194.32,25.20679385]
[1739614387606,8.88983774,194.34,194.32,25.20679385]
[1739614388211,0.03432868,194.35,194.32,25.20679385]
[1739614388513,5.1451,194.33,194.32,25.20679385]
[1739614389112,5.1451,194.33,194.32,17.38359385]
[1739614389314,5.1451,194.33,194.32,9.44009385]
[1739614389814,14.03463774,194.34,194.32,9.44009385]
[1739614390113,8.88983774,194.34,194.32,9.44009385]
[1739614390613,14.03463774,194.34,194.32,9.44009385]
[1739614390809,8.88983774,194.34,194.32,9.44009385]
[1739614392616,14.03473774,194.34,194.32,9.44009385]
[1739614392919,8.88983774,194.34,194.32,9.41639385]
[1739614393313,5.1451,194.33,194.32,9.41639385]
[1739614394914,14.03463774,194.34,194.32,9.41639385]
[1739614396216,5.1451,194.33,194.32,9.41639385]
[1739614396917,8.88983774,194.34,194.32,9.41639385]
[1739614398719,14.03483774,194.34,194.32,9.41639385]
[1739614398918,35.36651437,194.49,194.33,8.88983774]
[1739614399118,26.47667663,194.49,194.42,14.03253774]
[1739614400111,175.1936406,194.44,194.42,14.03253774]
[1739614400512,0.03426636,194.44,194.42,8.88983774]
[1739614400712,0.03426636,194.44,194.43,5.1424]